[Event "WSTCC-50 2024"]
[Site "Krakow"]
[Date "2024.07.03"]
[Round "2.10"]
[White "Dishman, Stephen"]
[Black "Burrows, Martin P"]
[Result "1-0"]
[ECO "A14"]
[WhiteElo "2308"]
[BlackElo "2019"]
[Annotator "TA"]
[PlyCount "111"]
[EventDate "2024.07.01"]
[EventType "team-tourn"]
[EventCountry "POL"]
[SourceTitle "playchess.com"]
[Source "ChessBase"]
[SourceQuality "1"]
[TimeControl "40/5400+30:1800+30"]

{[%evp 18,110,21,12,8,-5,-9,-8,-12,-11,0,-7,0,-3,0,0,0,0,0,0,0,0,0,0,0,0,0,-10,-5,-14,0,-12,0,-22,-12,-18,-5,-15,0,0,0,-6,31,18,92,105,98,31,41,-16,98,0,104,109,125,127,125,85,133,69,148,148,181,191,217,214,202,195,177,202,227,236,216,218,221,156,204,218,186,210,143,204,29986,29987,29987,29988,29988,757,29989,29990,29997,29997,29998,29999,29999]} 1. Nf3 {[%emt 0:00:05]} Nf6 {[%emt 0:00:10]} 2. c4 {[%emt 0:00:12]} e6 {[%emt 0:00:07]} 3. g3 {[%emt 0:00:15]} d5 {[%emt 0:00:09]} 4. Bg2 {[%emt 0:00:22]} Be7 {[%emt 0:00:31]} 5. O-O {[%emt 0:00:42]} O-O {[%emt 0:00:11]} 6. d4 {[%emt 0:00:14]} dxc4 {[%emt 0:00:15]} 7. Qc2 {[%emt 0:00:23]} a6 {[%emt 0:00:22]} 8. a4 {[%emt 0:00:17]} Bd7 {[%emt 0:00:11]} 9. Qxc4 {[%emt 0:00:20]} Bc6 {[%emt 0:00:14]} 10. Bf4 {[%emt 0:00:27]} Bd6 {[%emt 0:00:38]} 11. Nc3 {[%emt 0:00:30]} Bxf4 {[%emt 0:08:09]} 12. gxf4 {[%emt 0:00:02]} a5 {[%emt 0:00:15] The position is equal.} 13. e3 {[%emt 0:00:13]} Na6 {[%emt 0:01:19]} 14. Ne5 {[%emt 0:01:08]} Bxg2 {[%emt 0:08:27]} 15. Kxg2 {[%emt 0:00:03]} Nb4 {[%emt 0:00:38]} 16. Rac1 {[%emt 0:01:52]} c6 {[%emt 0:00:43]} 17. h3 {[%emt 0:02:13]} Qe7 {[%emt 0:09:01]} 18. Rfd1 {[%emt 0:05:32]} Rfc8 {[%emt 0:04:17]} 19. Qe2 {[%emt 0:03:03]} Nbd5 {[%emt 0:11:20]} 20. Rc2 {[%emt 0:09:26]} Qb4 {[%emt 0:03:33]} 21. Nd3 $1 {[%emt 0:06:47]} Qe7 {[%emt 0:05:06]} ({Much weaker is} 21... Nxc3 $6 22. bxc3 Qb3 (22... Qxa4 23. Nc5 $14) 23. Nc5 Qd5+ 24. Kh2 $18 (24. e4 Qd8 $14)) 22. Nc5 {[%emt 0:04:11]} Rd8 {[%emt 0:03:04]} 23. Qf3 {[%emt 0:04:23]} g6 {[%emt 0:02:17]} 24. Ne2 {[%emt 0:08:27]} Kh8 {[%emt 0:02:37]} 25. Ng3 {[%emt 0:02:44]} Qc7 {[%emt 0:02:27]} 26. Rcd2 {[%emt 0:01:50]} Rg8 {[%emt 0:03:37]} 27. Nd3 {[%emt 0:03:51]} Nb6 {[%emt 0:05:32]} 28. b3 {[%emt 0:01:34]} Rad8 {[%emt 0:00:43]} 29. Ne5 {[%emt 0:01:22]} Rgf8 {[%emt 0:02:28]} 30. e4 {[%emt 0:10:31]} Nbd7 {[%emt 0:02:25]} (30... Ne8 $11 {keeps the balance.}) 31. Qc3 $16 {[%emt 0:02:59][%cal Od4d5] [#] Threatens to win with d5! White has more active pieces.} Nxe5 {[%emt 0:15:40]} 32. fxe5 {[%emt 0:02:22]} ({Better is} 32. dxe5 $16 Rxd2 33. Qxd2 (33. Rxd2 Nd7 $16)) 32... Ne8 $14 {[%emt 0:01:17]} 33. f4 {[%emt 0:02:08]} (33. b4 $14) 33... Qb6 {[%emt 0:01:40] [#]} (33... f5 $11) 34. Nf1 {[%emt 0:11:10]} ({White should play} 34. d5 $1 $16) 34... Nc7 {[%emt 0:01:36]} (34... f5 $11) 35. Ne3 $36 {[%emt 0:00:16][%mdl 2048] Black is under strong pressure.} Qb4 {[%emt 0:01:42]} 36. Qxb4 {[%emt 0:06:48]} axb4 {[%emt 0:00:02]} 37. Nc4 {[%emt 0:02:09]} Kg8 {[%emt 0:03:49]} (37... f5 $142) 38. Nb6 {[%emt 0:01:42]} (38. Kf3 $16) 38... Rfe8 {[%emt 0:01:17]} ({Black should try} 38... f6 $14) 39. Kf3 {[%emt 0:00:55]} Na8 {[%emt 0:01:02]} 40. Nc4 {[%emt 0:01:41]} Re7 {[%emt 0:00:46]} 41. d5 {[%emt 0:32:23]} cxd5 {[%emt 0:01:44]} 42. exd5 {[%emt 0:00:00]} Rxd5 {[%emt 0:00:36]} 43. Rxd5 {[%emt 0:00:00]} exd5 {[%emt 0:00:04]} 44. Rxd5 $18 {[%emt 0:00:00][%mdl 4096] Endgame. Rd8+ is the strong threat. KRN-KRN} Nc7 {[%emt 0:00:31]} 45. Rd8+ {[%emt 0:00:00]} Kg7 {[%emt 0:00:16]} 46. Rb8 {[%emt 0:00:00]} Ne6 {[%emt 0:01:54]} 47. Nd6 {[%emt 0:00:00] Hoping for Ne8+.} Nc5 {[%emt 0:04:29]} 48. Ne8+ {[%emt 0:00:00]} Kh6 {[%emt 0:00:19]} 49. Nf6 {[%emt 0:00:00] Prevents f5. Rh8 would now be deadly.} Rc7 $2 {[%emt 0:11:08]} (49... Nd7 $18 50. Nxd7 (50. Rxb7 $2 {perishes.} Nxe5+ 51. Ke4 Rxb7 $19) 50... Rxd7) 50. Rh8 {[%emt 0:00:00][%csl Gf6][%cal Rh8h7]} Kg7 {[%emt 0:00:08]} 51. Rg8+ {[%emt 0:00:00]} Kh6 {[%emt 0:00:05]} 52. Ng4+ {[%emt 0:00:00]} Kh5 {[%emt 0:00:05]} 53. Rg7 {[%emt 0:00:00][%cal Rg7h7] White mates.} g5 {[%emt 0:04:11]} 54. Rxg5+ {[%emt 0:00:00]} Kh4 {[%emt 0:00:07]} 55. Nf6 {[%emt 0:00:00][%csl Gf6][%cal Rg5h5]} Kxh3 {[%emt 0:00:26]} 56. Rh5# {[%emt 0:00:00] Weighted Error Value: White=0.10 (very precise) /Black=0.29 (precise) .  Mistake:       	White=4     	Black=6      Inaccurate:     	White=1     	Black=1      OK:         	White=17    	Black=8      Best:        	White=3     	Black=5      Strong:       	White=1     	---} 1-0

[Event "WSTCC-50 2024"]
[Site "Krakow"]
[Date "2024.07.03"]
[Round "2.10"]
[White "Ograbek, Grzegorz"]
[Black "Rowe, Peter"]
[Result "1/2-1/2"]
[ECO "C41"]
[WhiteElo "2063"]
[BlackElo "1960"]
[Annotator "NA RC"]
[PlyCount "84"]
[EventDate "2024.07.01"]
[EventType "team-tourn"]
[EventCountry "POL"]
[SourceTitle "playchess.com"]
[Source "ChessBase"]
[SourceQuality "1"]
[TimeControl "40/5400+30:1800+30"]

1. d4 {[%emt 0:00:04]} d6 {[%emt 0:00:13]} 2. e4 {[%emt 0:00:22]} e5 {[%emt 0:00:36]} 3. Nf3 {[%emt 0:03:03]} exd4 {[%emt 0:03:16]} 4. Nxd4 {[%emt 0:00:40]} Nf6 {[%emt 0:00:51]} 5. Nc3 {[%emt 0:00:21]} Be7 {[%emt 0:01:48]} 6. Be2 {[%emt 0:02:27]} c6 {[%emt 0:04:35]} 7. O-O {[%emt 0:09:22]} O-O {[%emt 0:04:14]} 8. Re1 {[%emt 0:13:25]} Re8 {[%emt 0:05:42]} 9. Bf3 {[%emt 0:14:18]} Bf8 {[%emt 0:10:22]} 10. Bf4 {[%emt 0:05:34]} Nbd7 {[%emt 0:03:09]} 11. Qd2 {[%emt 0:07:23]} Ne5 {[%emt 0:01:46]} 12. Rad1 {[%emt 0:00:08]} Qc7 {[%emt 0:08:21]} 13. Bg3 {[%emt 0:03:22]} b6 {[%emt 0:08:16]} 14. Be2 {[%emt 0:00:17]} Ng6 {[%emt 0:16:30]} 15. f3 {[%emt 0:03:36]} Nh5 {[%emt 0:02:30]} 16. Bf2 {[%emt 0:00:09]} Nhf4 {[%emt 0:01:34]} 17. Bf1 {[%emt 0:00:12]} b5 {[%emt 0:04:04]} 18. a3 {[%emt 0:01:32]} a6 {[%emt 0:00:43]} 19. Kh1 {[%emt 0:04:29]} Bd7 {[%emt 0:03:48]} 20. Nf5 {[%emt 0:01:16]} d5 {[%emt 0:02:27]} 21. Bg3 {[%emt 0:00:12]} Rad8 {[%emt 0:04:02]} 22. Qc1 {[%emt 0:07:20]} b4 {[%emt 0:03:29]} 23. axb4 {[%emt 0:00:54]} Bxb4 {[%emt 0:00:15]} 24. Nd4 {[%emt 0:07:22]} Bd6 {[%emt 0:01:10]} 25. exd5 {[%emt 0:00:22]} Nxd5 {[%emt 0:04:59]} 26. Bxd6 {[%emt 0:04:23]} Qxd6 {[%emt 0:00:37]} 27. Ne4 {[%emt 0:00:22]} Qb4 {[%emt 0:00:44]} 28. c3 {[%emt 0:00:25]} Qb6 {[%emt 0:00:13]} 29. b4 {[%emt 0:04:17]} a5 {[%emt 0:00:32]} 30. bxa5 {[%emt 0:00:34]} Qxa5 {[%emt 0:00:07]} 31. c4 {[%emt 0:01:28]} Ndf4 {[%emt 0:00:46]} 32. g3 {[%emt 0:01:18]} Ne6 {[%emt 0:00:13]} 33. Nd6 {[%emt 0:00:11]} Nxd4 {[%emt 0:01:45]} 34. Rxe8+ {[%emt 0:02:13]} Bxe8 {[%emt 0:00:17]} 35. Nb7 {[%emt 0:01:22]} Qc7 {[%emt 0:01:37]} 36. Nxd8 {[%emt 0:00:05]} Qxd8 {[%emt 0:00:09]} 37. c5 {[%emt 0:00:51]} Qf6 {[%emt 0:00:51]} 38. Qe3 {[%emt 0:01:53]} Qxf3+ {[%emt 0:00:44]} 39. Qxf3 {[%emt 0:00:05]} Nxf3 {[%emt 0:00:14]} 40. Bg2 {[%emt 0:01:15]} Nfe5 {[%emt 0:00:57]} 41. Kg1 {[%emt 0:31:06]} Kf8 {[%emt 0:30:47]} 42. Be4 {[%emt 0:00:00]} Ke7 1/2-1/2

[Event "WSTCC-50 2024"]
[Site "Krakow"]
[Date "2024.07.03"]
[Round "2.11"]
[White "Fraser-Mitchell, Jeremy N"]
[Black "Clark, Gary M"]
[Result "0-1"]
[ECO "A45"]
[WhiteElo "2036"]
[BlackElo "2299"]
[Annotator "TA"]
[PlyCount "38"]
[EventDate "2024.07.01"]
[EventType "team-tourn"]
[EventCountry "POL"]
[SourceTitle "playchess.com"]
[Source "ChessBase"]
[SourceQuality "1"]
[TimeControl "40/5400+30:1800+30"]

{[%evp 9,38,-5,10,0,7,0,0,4,13,11,19,-11,-22,-60,-62,-54,-59,-79,0,-270,-260,-489,-506,-1149,-1114,-1723,-1690,-2093,-1007,-940,-948]} 1. d4 {[%emt 0:00:40]} Nf6 {[%emt 0:00:15]} 2. Nc3 {[%emt 0:00:15]} d5 {[%emt 0:00:19]} 3. Bf4 {[%emt 0:00:11]} g6 {[%emt 0:00:36]} 4. e3 {[%emt 0:00:07]} Bg7 {[%emt 0:00:07]} 5. h4 {[%emt 0:00:12]} h5 {[%emt 0:00:24]} 6. Nf3 {[%emt 0:00:12]} O-O {[%emt 0:00:56][%cal Oc7c5]} 7. Ne5 {[%emt 0:00:53]} c5 {[%emt 0:00:20]} 8. Qd2 {[%emt 0:00:29] The position is equal.} Nc6 {[%emt 0:00:35]} 9. f3 {[%emt 0:02:11]} Qa5 {[%emt 0:04:09]} 10. O-O-O {[%emt 0:04:00]} Nd7 {[%emt 0:03:58]} 11. Nxc6 {[%emt 0:05:26]} ({Reject} 11. Nxd5 Qxa2 12. c4 Ndxe5 13. dxe5 Nxe5 14. Nxe7+ Kh8 $17) 11... bxc6 {[%emt 0:00:34]} 12. g4 {[%emt 0:03:09]} e5 {[%emt 0:02:11]} 13. dxe5 {[%emt 0:02:26]} Nxe5 {[%emt 0:00:52]} ({Black should play} 13... hxg4 $17 14. Qh2 Re8) 14. Bxe5 $4 {[%emt 0:06:46][%mdl 8192]} (14. gxh5 $1 $11 {and White has nothing to worry.} Rb8 (14... Nxf3 15. Qg2 $14) 15. h6) 14... Bxe5 $19 {[%emt 0:00:07]} 15. gxh5 $2 {[%emt 0:01:30]} (15. Nxd5 Qxd2+ (15... Qxa2 $2 16. Ne7+ Kg7 17. c3 $19) 16. Rxd2 cxd5 17. Rxd5) 15... Rb8 {[%emt 0:00:39][%cal Ob8b2] aiming for ...Rxb2! Black is clearly winning.} 16. hxg6 {[%emt 0:08:50] [#]} (16. a3 $142 Rxb2 (16... gxh5 $2 {is the wrong capture.} 17. Rg1+ Bg7 18. Rxg7+ Kxg7 19. Qg2+ $18) 17. Kxb2) 16... Rxb2 $3 {[%emt 0:01:17][%mdl 512]} 17. gxf7+ {[%emt 0:00:15]} (17. Nb5 Rxb5) 17... Kxf7 {[%emt 0:00:33] ( -> ...Qb4)} 18. Qd3 {[%emt 0:07:23] White is weak on the dark squares} Qxc3 {[%emt 0:01:29]} (18... Bxc3 $142 19. Qh7+ Ke8 20. Qg6+ Kd7) 19. Qxc3 {[%emt 0:02:29]} Bxc3 {[%emt 0:00:02] Weighted Error Value: White=1.80/Black=0.39.  Loses game:     	White=1     	---        Mistake:       	White=2     	Black=1      Inaccurate:     	White=3     	---        OK:         	White=4     	Black=5      Best:        	---       	Black=1} 0-1

[Event "WSTCC-50 2024"]
[Site "Krakow"]
[Date "2024.07.03"]
[Round "2.11"]
[White "Staeblein, Christoph"]
[Black "Arnason, Jon L"]
[Result "0-1"]
[ECO "D25"]
[WhiteElo "1991"]
[BlackElo "2421"]
[Annotator "RC"]
[PlyCount "74"]
[EventDate "2024.07.01"]
[EventType "team-tourn"]
[EventCountry "POL"]
[SourceTitle "playchess.com"]
[Source "ChessBase"]
[SourceQuality "1"]
[TimeControl "40/5400+30:1800+30"]

1. d4 {[%emt 0:00:05]} d5 {[%emt 0:00:13]} 2. Nf3 {[%emt 0:00:16]} Nf6 {[%emt 0:00:11]} 3. c4 {[%emt 0:00:09]} dxc4 {[%emt 0:00:36]} 4. e3 {[%emt 0:00:42]} a6 {[%emt 0:00:48]} 5. Bxc4 {[%emt 0:00:26]} e6 {[%emt 0:00:05]} 6. O-O {[%emt 0:00:45]} b5 {[%emt 0:01:26]} 7. Bb3 {[%emt 0:09:26]} Bb7 {[%emt 0:01:00]} 8. Qe2 {[%emt 0:02:02]} Nbd7 {[%emt 0:02:35]} 9. Rd1 {[%emt 0:01:10]} c5 {[%emt 0:07:14]} 10. dxc5 {[%emt 0:04:16]} Qc7 {[%emt 0:02:18]} 11. Nc3 {[%emt 0:08:46]} Bxc5 {[%emt 0:08:06]} 12. a3 {[%emt 0:16:12]} O-O {[%emt 0:02:09]} 13. h3 {[%emt 0:02:37]} Rac8 {[%emt 0:18:29]} 14. e4 {[%emt 0:07:18]} h6 {[%emt 0:07:45]} 15. Bd2 {[%emt 0:03:21]} Rfd8 {[%emt 0:03:53]} 16. Rac1 {[%emt 0:00:49]} Qb8 {[%emt 0:01:52]} 17. Bc2 {[%emt 0:02:27]} Nh5 {[%emt 0:10:53]} 18. Be3 {[%emt 0:05:08]} Nf4 {[%emt 0:01:03]} 19. Qe1 {[%emt 0:00:18]} Bf8 {[%emt 0:05:40]} 20. Bb1 {[%emt 0:02:01]} Nc5 {[%emt 0:02:18]} 21. Qf1 {[%emt 0:13:08]} Ng6 {[%emt 0:07:21]} 22. Rxd8 {[%emt 0:00:57]} Rxd8 {[%emt 0:00:05]} 23. Rd1 {[%emt 0:00:16]} Rc8 {[%emt 0:02:09]} 24. Qe2 {[%emt 0:00:55]} Bd6 {[%emt 0:01:13]} 25. Qd2 {[%emt 0:01:11]} Bf4 {[%emt 0:00:35]} 26. Qe2 {[%emt 0:04:45]} Ba8 {[%emt 0:02:18]} 27. Qd2 {[%emt 0:04:41]} Bxe3 {[%emt 0:03:19]} 28. Qxe3 {[%emt 0:00:16]} b4 {[%emt 0:01:05]} 29. axb4 {[%emt 0:00:41]} Qxb4 {[%emt 0:00:05]} 30. Rd2 {[%emt 0:03:07]} Na4 {[%emt 0:03:56]} 31. Qd4 {[%emt 0:03:33]} Qxd4 {[%emt 0:00:33]} 32. Rxd4 {[%emt 0:00:07]} Nxb2 {[%emt 0:00:44]} 33. Rb4 {[%emt 0:01:34]} Nc4 {[%emt 0:01:54]} 34. Ne2 {[%emt 0:01:06]} a5 {[%emt 0:00:32]} 35. Rb5 {[%emt 0:00:22]} Na3 {[%emt 0:00:15]} 36. Rb3 {[%emt 0:00:20]} Nxb1 {[%emt 0:00:07]} 37. Rxb1 {[%emt 0:00:06]} Bxe4 {[%emt 0:00:06]} 0-1

[Event "WSTCC-50 2024"]
[Site "Krakow"]
[Date "2024.07.03"]
[Round "2.11"]
[White "Morgan, Jamie"]
[Black "Czyz, Andrzej"]
[Result "0-1"]
[ECO "C23"]
[WhiteElo "1843"]
[BlackElo "1921"]
[Annotator "NA RC"]
[PlyCount "94"]
[EventDate "2024.07.01"]
[EventType "team-tourn"]
[EventCountry "POL"]
[SourceTitle "playchess.com"]
[Source "ChessBase"]
[SourceQuality "1"]
[TimeControl "40/5400+30:1800+30"]

1. e4 {[%emt 0:00:05]} e5 {[%emt 0:00:31]} 2. Bc4 {[%emt 0:00:29]} Bc5 {[%emt 0:02:55]} 3. d3 {[%emt 0:00:40]} Nf6 {[%emt 0:00:22]} 4. Nc3 {[%emt 0:00:54]} O-O {[%emt 0:01:44]} 5. f4 {[%emt 0:00:34]} d6 {[%emt 0:01:41]} 6. f5 {[%emt 0:02:58]} c6 {[%emt 0:04:30]} 7. a3 {[%emt 0:06:50]} d5 {[%emt 0:00:50]} 8. Ba2 {[%emt 0:03:35]} dxe4 {[%emt 0:01:46]} 9. dxe4 {[%emt 0:01:52]} Qxd1+ {[%emt 0:06:28]} 10. Kxd1 {[%emt 0:00:55]} Bd4 {[%emt 0:04:37]} 11. Bg5 {[%emt 0:13:25]} Bxc3 {[%emt 0:03:56]} 12. Bxf6 {[%emt 0:10:53]} Bxb2 {[%emt 0:01:08]} 13. Rb1 {[%emt 0:00:15]} Bd4 {[%emt 0:06:25]} 14. Bg5 {[%emt 0:12:24]} h6 {[%emt 0:03:55]} 15. Bh4 {[%emt 0:01:07]} Nd7 {[%emt 0:03:08]} 16. Nf3 {[%emt 0:01:03]} Bc5 {[%emt 0:02:51]} 17. Rb3 {[%emt 0:09:32]} Re8 {[%emt 0:02:38]} 18. Rc3 {[%emt 0:09:58]} b6 {[%emt 0:02:07]} 19. Kc1 {[%emt 0:01:56]} Nf6 {[%emt 0:04:45]} 20. Bxf6 {[%emt 0:02:20]} gxf6 {[%emt 0:00:06]} 21. Rd1 {[%emt 0:00:41]} Kf8 {[%emt 0:06:19]} 22. Ne1 {[%emt 0:01:57]} Ba6 {[%emt 0:09:54]} 23. Nd3 {[%emt 0:04:04]} Be7 {[%emt 0:03:52]} 24. Nb4 {[%emt 0:00:47]} Bb5 {[%emt 0:03:14]} 25. Rh3 {[%emt 0:07:55]} a5 {[%emt 0:00:54]} 26. c4 {[%emt 0:01:06]} Ba4 {[%emt 0:00:30]} 27. Nc2 {[%emt 0:00:07]} Rad8 {[%emt 0:04:09]} 28. Rhd3 {[%emt 0:01:05]} Rxd3 {[%emt 0:01:13]} 29. Rxd3 {[%emt 0:00:17]} Bc5 {[%emt 0:01:58]} 30. Bb3 {[%emt 0:00:50]} Bxb3 {[%emt 0:00:40]} 31. Rxb3 {[%emt 0:00:03]} Rd8 {[%emt 0:00:37]} 32. a4 {[%emt 0:01:11]} Bg1 {[%emt 0:01:50]} 33. Rh3 {[%emt 0:02:06]} Kg7 {[%emt 0:00:22]} 34. Rg3+ {[%emt 0:01:14]} Kh7 {[%emt 0:00:21]} 35. Rb3 {[%emt 0:00:09]} Rg8 {[%emt 0:00:35]} 36. g3 {[%emt 0:01:04]} Rg4 {[%emt 0:00:03]} 37. Kd2 {[%emt 0:01:12]} Rxe4 {[%emt 0:00:19]} 38. Rb1 {[%emt 0:00:09]} Bxh2 {[%emt 0:01:34]} 39. Rxb6 {[%emt 0:00:16]} Rxc4 {[%emt 0:00:06]} 40. Kd3 {[%emt 0:01:25]} Rxa4 {[%emt 0:02:26]} 41. Rxc6 {[%emt 0:30:52]} Kg7 {[%emt 0:30:22]} 42. Kc3 {[%emt 0:00:00]} Bxg3 {[%emt 0:00:00]} 43. Kb3 {[%emt 0:00:00]} Rf4 {[%emt 0:00:00]} 44. Rc3 {[%emt 0:00:00]} Bf2 {[%emt 0:00:00]} 45. Ne3 {[%emt 0:00:00]} Bxe3 {[%emt 0:00:00]} 46. Rxe3 {[%emt 0:00:00]} Rxf5 {[%emt 0:00:00]} 47. Ka4 {[%emt 0:00:00]} h5 {[%emt 0:00:00]} 0-1

[Event "WSTCC-50 2024"]
[Site "Krakow"]
[Date "2024.07.03"]
[Round "2.12"]
[White "Thorhallsson, Throstur"]
[Black "Koop, Thilo"]
[Result "1-0"]
[ECO "B91"]
[WhiteElo "2385"]
[BlackElo "2088"]
[Annotator "TA"]
[PlyCount "65"]
[EventDate "2024.07.01"]
[EventType "team-tourn"]
[EventCountry "POL"]
[SourceTitle "playchess.com"]
[Source "ChessBase"]
[SourceQuality "1"]
[TimeControl "40/5400+30:1800+30"]

{[%evp 15,65,14,19,13,9,10,35,19,10,1,19,0,22,0,21,0,62,22,25,33,40,27,52,5,22,2,70,16,78,95,150,152,201,216,212,223,206,210,229,199,162,132,513,338,512,434,445,433,1385,1303,1505,1391]} 1. e4 {[%emt 0:00:11]} c5 {[%emt 0:00:10]} 2. Nf3 {[%emt 0:00:32]} d6 {[%emt 0:00:09]} 3. d4 {[%emt 0:00:09]} cxd4 {[%emt 0:00:10]} 4. Nxd4 {[%emt 0:00:07]} Nf6 {[%emt 0:00:10]} 5. Nc3 {[%emt 0:00:18]} a6 {[%emt 0:00:10]} 6. g3 {[%emt 0:00:32]} e5 {[%emt 0:03:55]} 7. Nde2 {[%emt 0:00:15]} Be7 {[%emt 0:00:23]} 8. Bg2 {[%emt 0:00:20]} b5 {[%emt 0:00:14]} 9. Nd5 {[%emt 0:04:42]} Nxd5 {[%emt 0:00:20]} 10. Qxd5 {[%emt 0:00:12]} Ra7 {[%emt 0:00:10]} 11. Be3 {[%emt 0:01:42] White is slightly better.} Rb7 {[%emt 0:00:35]} 12. O-O {[%emt 0:02:34]} Nd7 {[%emt 0:02:10]} 13. Qd2 {[%emt 0:03:38]} Nf6 {[%emt 0:09:48]} 14. Bg5 {[%emt 0:25:54]} Rc7 {[%emt 0:07:48][%cal Of6e4]} 15. Rfd1 {[%emt 0:03:58]} Bb7 {[%emt 0:08:00]} (15... O-O $11) 16. Qd3 {[%emt 0:06:58]} O-O {[%emt 0:04:37]} 17. a4 {[%emt 0:01:38]} bxa4 {[%emt 0:11:30]} 18. Rxa4 {[%emt 0:04:01]} Qc8 {[%emt 0:00:22]} 19. c4 {[%emt 0:08:40]} (19. Nc3 $14 {deserves consideration.}) 19... Nxe4 {[%emt 0:06:13]} 20. Bxe4 {[%emt 0:05:06]} (20. Bxe7 {with more complications.} Nc5 21. Qxd6 Rd7 22. Qxd7 Nxd7 23. Bxb7 Qxb7 24. Rb4) 20... Bxg5 {[%emt 0:06:14]} ({Black should try} 20... Bxe4 $11 21. Qxe4 Bxg5) 21. Bxh7+ $14 {[%emt 0:04:15]} Kh8 {[%emt 0:00:09] [#] ...g6 is the strong threat.} 22. Bf5 {[%emt 0:02:00]} e4 {[%emt 0:20:23]} 23. Bxe4 $16 {[%emt 0:07:23] White is more active.} (23. Qxd6 Qb8 24. Qb6 e3 25. fxe3 Bc6 26. Qxb8 Rxb8 $15 (26... Bxe3+ 27. Kf1 $16)) 23... Re7 {[%emt 0:02:37]} (23... Bxe4 $16 {is a better defense.} 24. Qxe4 Re8) 24. Bxb7 {[%emt 0:04:38]} Qxb7 {[%emt 0:00:15]} 25. Nc3 {[%emt 0:01:16]} (25. Qxd6 $6 Rfe8 $16) 25... Rfe8 {Hoping for ...Re1+.} 26. Nd5 {[%emt 0:02:42]} (26. Qxd6 $2 {leads to mate.} Re1+ 27. Rxe1 Rxe1#) 26... Re2 {[%emt 0:02:46]} 27. Rb4 {[%emt 0:02:56]} Qa7 {[%emt 0:00:45]} 28. Qf3 {[%emt 0:01:58]} g6 $2 {[%emt 0:02:40][%mdl 8192] This costs Black the game.} (28... Bd2 $16) 29. Rb6 {[%emt 0:00:49]} R8e6 {[%emt 0:01:51]} (29... R2e6 {might work better.} 30. Rc6 Bd8) 30. h4 {[%emt 0:00:41] White is clearly winning.} Bd8 {[%emt 0:02:57]} 31. Rb3 {[%emt 0:00:19][%cal Bb6b3,Bb3b8,Bb8d8][%mdl 32] Threatens to win with Nf4.} Qc5 {[%emt 0:01:14]} (31... Qd7 $142 32. Nf4 Re1+ 33. Kh2 Rxd1) 32. Rb8 $18 {[%emt 0:01:10]} (32. Qxf7 $2 {perishes.} Rf6 33. Rf3 (33. Nxf6 $2 {gets mated.} Qxf2+ 34. Kh1 Qh2#) 33... Rxf7 34. Rxf7 Kg8 $19 (34... Qxc4 $2 35. Rf8+ Kg7 36. Rxd8 $19) (34... Rxb2 $2 35. Re1 $19)) 32... Re8 {[%emt 0:01:27] [#]} 33. Rxd8 $1 {[%emt 0:00:36][%mdl 512] Weighted Error Value: White=0.26 (precise) /Black=0.55.  Loses game:     	---       	Black=1      Mistake:       	White=1     	Black=6      Inaccurate:     	White=2     	Black=1      OK:         	White=6     	Black=6      Best:        	White=2     	---} 1-0

[Event "WSTCC-50 2024"]
[Site "Krakow"]
[Date "2024.07.03"]
[Round "2.12"]
[White "Townsend, M Paul"]
[Black "Noyce, Robert C"]
[Result "1-0"]
[ECO "A81"]
[WhiteElo "2147"]
[BlackElo "2088"]
[Annotator "NA RC"]
[PlyCount "75"]
[EventDate "2024.07.01"]
[EventType "team-tourn"]
[EventCountry "POL"]
[SourceTitle "playchess.com"]
[Source "ChessBase"]
[SourceQuality "1"]
[TimeControl "40/5400+30:1800+30"]

1. d4 {[%emt 0:00:06]} f5 {[%emt 0:00:12]} 2. g3 {[%emt 0:00:58]} Nf6 {[%emt 0:00:12]} 3. Bg2 {[%emt 0:00:07]} g6 {[%emt 0:00:08]} 4. Nf3 {[%emt 0:00:53]} Bg7 {[%emt 0:00:12]} 5. O-O {[%emt 0:00:09]} O-O {[%emt 0:00:06]} 6. b3 {[%emt 0:00:30]} d6 {[%emt 0:00:20]} 7. Bb2 {[%emt 0:00:34]} Ne4 {[%emt 0:00:55]} 8. c4 {[%emt 0:04:49]} Nc6 {[%emt 0:02:31]} 9. Nc3 {[%emt 0:04:51]} Nxc3 {[%emt 0:09:17]} 10. Bxc3 {[%emt 0:00:03]} e5 {[%emt 0:00:23]} 11. dxe5 {[%emt 0:01:25]} dxe5 {[%emt 0:00:39]} 12. Qd5+ {[%emt 0:16:16]} Kh8 {[%emt 0:07:42]} 13. Qxd8 {[%emt 0:01:36]} Rxd8 {[%emt 0:00:54]} 14. Ng5 {[%emt 0:01:07]} Rf8 {[%emt 0:02:38]} 15. Bxc6 {[%emt 0:08:03]} bxc6 {[%emt 0:00:51]} 16. Rad1 {[%emt 0:00:24]} e4 {[%emt 0:08:59]} 17. Bxg7+ {[%emt 0:07:05]} Kxg7 {[%emt 0:00:24]} 18. f3 {[%emt 0:04:30]} h6 {[%emt 0:06:08]} 19. Nh3 {[%emt 0:00:07]} exf3 {[%emt 0:00:49]} 20. exf3 {[%emt 0:00:27]} g5 {[%emt 0:01:02]} 21. f4 {[%emt 0:00:39]} Kf6 {[%emt 0:02:35]} 22. Rfe1 {[%emt 0:07:30]} a5 {[%emt 0:04:15]} 23. a4 {[%emt 0:03:06]} Rb8 {[%emt 0:08:52]} 24. Rd3 {[%emt 0:02:13]} g4 {[%emt 0:02:34]} 25. Nf2 {[%emt 0:00:10]} Be6 {[%emt 0:03:45]} 26. Re5 {[%emt 0:08:12]} Rfd8 {[%emt 0:03:09]} 27. Kf1 {[%emt 0:03:06]} Bf7 {[%emt 0:03:13]} 28. Rxd8 {[%emt 0:01:29]} Rxd8 {[%emt 0:00:07]} 29. Ke2 {[%emt 0:06:17]} Rb8 {[%emt 0:08:34]} 30. Re3 {[%emt 0:00:15]} h5 {[%emt 0:01:01]} 31. Kd2 {[%emt 0:01:04]} h4 {[%emt 0:03:14]} 32. Kc3 {[%emt 0:00:42]} hxg3 {[%emt 0:01:25]} 33. hxg3 {[%emt 0:00:08]} Rh8 {[%emt 0:04:10]} 34. Nd3 {[%emt 0:01:00]} Ra8 {[%emt 0:07:15]} 35. Nc5 {[%emt 0:02:04]} Be8 {[%emt 0:07:19]} 36. Re5 {[%emt 0:01:34]} Rb8 {[%emt 0:00:45]} 37. Na6 {[%emt 0:04:12]} Bd7 {[%emt 0:01:44]} 38. Nxb8 {[%emt 0:00:08]} 1-0